fUST/lending_fUST_20251001
["ID","MTS","AMOUNT","RATE_DAILY","PERIOD"]
[388684783,1759318251460,-500.0,0.00020821,2]
[388684785,1759318251469,-500.0,0.00020821,2]
[388684787,1759318251478,-500.0,0.00020821,2]
[388684789,1759318251487,-707.51,0.00020821,2]
[388684791,1759318251496,-500.0,0.00020821,2]
[388684793,1759318251506,-500.0,0.00020821,2]
[388684795,1759318251515,-612.1,0.00020821,2]
[388684797,1759318251524,-500.0,0.00020821,2]
[388684799,1759318251533,-500.0,0.00020821,2]
[388684801,1759318251542,-500.0,0.00020821,2]
[388684803,1759318251551,-500.0,0.00020821,2]
[388684805,1759318251560,-604.03040885,0.00020821,2]
[388685395,1759318260024,510.4338529,0.00034505,120]
[388688355,1759318296778,3000.0,0.00026,60]
[388688357,1759318472797,685.6307178,0.00034508,120]
[388688361,1759318549554,10000.01,0.00019078,2]
[388688362,1759318549583,10000.01,0.00019078,2]
[388688363,1759318549613,10000.01,0.00019078,2]
[388688364,1759318549641,10000.01,0.00019078,2]
[388688365,1759318549670,10000.01,0.00019078,2]
[388688366,1759318550056,10000.01,0.00019078,2]
[388688367,1759318550088,10000.01,0.00019078,2]
[388688368,1759318550112,10000.01,0.00019078,2]
[388688369,1759318550137,10000.01,0.00019078,2]
[388688370,1759318550164,10000.01,0.00019078,2]
[388688371,1759318550576,-193.92918174,0.00019078,2]
[388688372,1759318554527,-699.35993462,0.00019078,2]
[388688373,1759318556559,-500.0,0.00019078,2]
[388688375,1759318558639,-1311.25984549,0.00019078,2]
[388688376,1759318562963,-300.0,0.00019077,2]
[388688377,1759318562987,-200.0,0.00019078,2]
[388688379,1759318566583,-620.77535671,0.00019078,2]
[388688380,1759318568135,-500.0,0.00019078,2]
[388688381,1759318570793,-439.08508952,0.00019078,2]
[388688382,1759318573145,-392.12091957,0.00019078,2]
[388688383,1759318575214,-315.62546277,0.00019078,2]
[388688385,1759318577049,-300.0,0.00019078,2]
[388688386,1759318578566,-200.0,0.00019078,2]
[388688387,1759318580118,-206.61339169,0.00019078,2]
[388688388,1759318581658,-227.03775526,0.00019078,2]
[388688389,1759318583199,-6931.66533308,0.00019078,2]
[388688390,1759318585995,-298.51234555,0.00019078,2]
[388688392,1759318588610,-500.0,0.00019078,2]
[388688393,1759318590661,-255.01229992,0.00019078,2]
[388688394,1759318592624,-459.65614521,0.00019078,2]
[388688395,1759318593095,360.68886964,0.00019077,2]
[388688396,1759318593123,192.50315648,0.00019077,2]
[388688397,1759318594103,500.0,0.00019077,2]
[388688398,1759318594132,500.0,0.00019077,2]
[388688399,1759318594160,516.03900194,0.00019077,2]
[388688400,1759318594189,274.60612634,0.00019077,2]
[388688401,1759318594219,500.0,0.00019077,2]
[388688402,1759318594247,500.0,0.00019077,2]
[388688403,1759318594275,500.0,0.00019077,2]
[388688404,1759318594301,500.0,0.00019077,2]
[388688405,1759318594332,500.0,0.00019077,2]
[388688406,1759318594359,500.0,0.00019077,2]
[388688407,1759318594386,500.0,0.00019077,2]
[388688408,1759318594412,380.25078816,0.00019077,2]
[388688409,1759318594440,500.0,0.00019077,2]
[388688410,1759318594467,283.52514118,0.00019077,2]
[388688411,1759318594515,500.0,0.00019077,2]
[388688412,1759318594546,500.0,0.00019077,2]
[388688413,1759318594578,219.52441033,0.00019077,2]
[388688415,1759318596308,-436.63010988,0.00019078,2]
[388688416,1759318598772,-500.0,0.00019078,2]
[388688417,1759318601526,-500.0,0.00019078,2]
[388688418,1759318603090,401.42349959,0.00019077,2]
[388688419,1759318603671,500.0,0.00019077,2]
[388688420,1759318603725,436.63010988,0.00019077,2]
[388688421,1759318604706,-518.81396918,0.00019078,2]
[388688423,1759318607905,-417.37658991,0.00019078,2]
[388688424,1759318623964,-518.81396918,0.00019077,2]
[388688425,1759318623993,-500.0,0.00019077,2]
[388688426,1759318634091,-300.0,0.00019077,2]
[388688427,1759318634171,-7893.24339164,0.00019078,2]
[388688428,1759318634643,-10000.01,0.00019078,2]
[388688430,1759318637312,-10000.01,0.00019078,2]
[388688431,1759318637448,-10000.01,0.00019078,2]
[388688432,1759318637578,-10000.01,0.00019078,2]
[388688433,1759318637738,-10000.01,0.00019078,2]
[388688434,1759318638028,-10000.01,0.00019078,2]
[388688435,1759318652976,5446.6047662,0.00018178,2]
[388688436,1759318653820,-400.33085956,0.00019078,2]
[388688437,1759318666782,-616.45594787,0.00019078,2]
[388688440,1759318981487,202.58,0.000189,2]
[388688441,1759319084818,500.0,0.00028767,120]
[388688442,1759319109097,500.0,0.00028767,120]
[388688443,1759319117235,500.0,0.00028767,120]
[388688444,1759319124666,500.0,0.00028767,120]
[388688445,1759319130691,500.0,0.00028767,120]
[388688446,1759319138320,500.0,0.00028767,120]
[388688447,1759319145986,500.0,0.00028767,120]
[388688448,1759319152855,3705.36492481,0.00019078,2]
[388688449,1759319155467,500.0,0.00028767,120]
[388688450,1759319235685,500.0,0.00028767,120]
[388688451,1759319245884,500.0,0.00028767,120]
[388688452,1759319255524,500.0,0.00028767,120]
[388688453,1759319261918,500.0,0.00028767,120]
[388688454,1759319271456,500.0,0.00028767,120]
[388688455,1759319277914,500.0,0.00028767,120]
[388688456,1759319281522,645.46030899,0.00019078,2]
[388688457,1759319281544,1354.53969101,0.00019078,2]
[388688458,1759319281901,172.815,0.00019078,2]
[388688459,1759319283973,500.0,0.00028767,120]
[388688460,1759319290410,500.0,0.00028767,120]
[388688461,1759319296477,500.0,0.00028767,120]
[388688462,1759319302094,500.0,0.00028767,120]
[388688463,1759319307445,500.0,0.00028767,120]
[388688464,1759319314604,500.0,0.00028767,120]
[388688465,1759319325092,500.0,0.00028767,120]
[388688466,1759319332380,500.0,0.00028767,120]
[388688467,1759319337745,500.0,0.00028767,120]
[388688468,1759319344560,500.0,0.00028767,120]
[388688469,1759319372838,500.0,0.00028767,120]
[388688470,1759319392316,391.0949863,0.00028767,120]
[388688471,1759319419878,500.0,0.00028767,120]
[388688472,1759319427167,500.0,0.00028767,120]
[388688517,1759319432764,-7537.20643611,0.00019078,2]
[388688519,1759319432774,-1200.0,0.00019099,2]
[388688521,1759319432783,-500.0,0.000191,2]
[388688523,1759319432792,-300.0,0.00019167,2]
[388688524,1759319432802,-1200.0,0.00019168,2]
[388688526,1759319432811,-503.31,0.00019168,3]
[388688528,1759319432820,-252.48220874,0.00019172,2]
[388688530,1759319432830,-246.61382337,0.00019172,2]
[388688532,1759319432842,-500.0,0.00019173,2]
[388688534,1759319432852,-500.0,0.00019173,2]
[388688536,1759319432861,-500.0,0.00019173,2]
[388688538,1759319432871,-500.0,0.00019173,2]
[388688540,1759319432880,-500.0,0.00019173,2]
[388688542,1759319432888,-166.38169438,0.00019173,2]
[388688544,1759319432898,-11566.40673151,0.00019173,2]
[388688546,1759319432911,-1164.8,0.00019173,2]
[388688548,1759319432921,-7686.53703082,0.00019173,2]
[388688550,1759319432932,-25195.06401631,0.00019173,2]
[388688663,1759319438582,-537.89123339,0.00019173,2]
[388688664,1759319438635,-3849.30098797,0.00019173,2]
[388688665,1759319438645,-500.0,0.00019173,2]
[388688666,1759319438654,-500.0,0.00019173,2]
[388688667,1759319438663,-500.0,0.00019173,2]
[388688668,1759319438673,-246.85646438,0.00019173,2]
[388688669,1759319438682,-500.0,0.00019173,2]
[388688670,1759319438692,-500.0,0.00019173,2]
[388688671,1759319438701,-500.0,0.00019173,2]
[388688672,1759319438710,-500.0,0.00019173,2]
[388688673,1759319438720,-500.0,0.00019173,2]
[388688674,1759319438729,-500.0,0.00019173,2]
[388688675,1759319438739,-500.0,0.00019173,2]
[388688676,1759319438748,-500.0,0.00019173,2]
[388688677,1759319438758,-155.0,0.00019177,2]
[388688678,1759319438767,-480.0,0.00019178,2]
[388688679,1759319438776,-500.0,0.00019178,2]
[388688680,1759319438785,-500.0,0.00019178,2]
[388688681,1759319438796,-500.0,0.00019178,2]
[388688682,1759319438805,-520.0,0.00019178,3]
[388688683,1759319438815,-480.0,0.00019178,2]
[388688684,1759319438824,-500.0,0.00019178,2]
[388688685,1759319438833,-500.0,0.00019178,2]
[388688686,1759319438844,-500.0,0.00019178,2]
[388688687,1759319438854,-500.0,0.00019178,2]
[388688688,1759319438863,-500.0,0.00019178,2]
[388688689,1759319438872,-500.0,0.00019178,2]
[388688690,1759319438881,-500.0,0.00019178,2]
[388688691,1759319438891,-1751.0,0.00019178,2]
[388688692,1759319438900,-500.0,0.00019178,2]
[388688693,1759319438910,-716.6,0.00019178,2]
[388688694,1759319438919,-500.0,0.00019178,2]
[388688695,1759319438928,-500.0,0.00019178,2]
[388688696,1759319438938,-500.0,0.00019178,2]
[388688697,1759319438947,-500.0,0.00019178,2]
[388688698,1759319438957,-500.0,0.00019178,2]
[388688699,1759319438967,-500.0,0.00019178,2]
[388688700,1759319438977,-500.0,0.00019178,2]
[388688701,1759319438986,-540.05,0.00019178,2]
[388688702,1759319438995,-500.0,0.00019178,2]
[388688703,1759319439004,-516.94,0.00019178,2]
[388688704,1759319439014,-649.43636513,0.00019178,2]
[388688705,1759319439023,-500.0,0.00019178,2]
[388688706,1759319439033,-500.0,0.00019178,2]
[388688707,1759319439042,-500.0,0.00019178,2]
[388688708,1759319439051,-500.0,0.00019178,2]
[388688709,1759319439061,-500.0,0.00019178,2]
[388688710,1759319439070,-637.56,0.00019178,2]
[388688711,1759319439080,-500.0,0.00019178,2]
[388688712,1759319439089,-579.33,0.00019178,2]
[388688713,1759319439099,-630.33,0.00019178,2]
[388688714,1759319439109,-1591.89,0.00019178,2]
[388688715,1759319439121,-500.0,0.00019178,2]
[388688716,1759319439131,-500.0,0.00019178,2]
[388688717,1759319439141,-500.0,0.00019178,2]
[388688718,1759319439151,-531.31,0.00019178,2]
[388688719,1759319439163,-500.0,0.00019178,2]
[388688720,1759319439172,-500.0,0.00019178,2]
[388688721,1759319439182,-500.0,0.00019178,2]
[388688722,1759319439193,-500.0,0.00019178,2]
[388688723,1759319439210,-628.69,0.00019178,2]
[388688724,1759319439220,-270.41288824,0.00019178,2]
[388688725,1759319439231,-500.0,0.00019178,2]
[388688726,1759319439242,-500.0,0.00019178,2]
[388688727,1759319439254,-541.99,0.00019178,2]
[388688728,1759319439264,-512.1,0.00019178,2]
[388688729,1759319439273,-1403.67,0.00019178,2]
[388688730,1759319439283,-877.93,0.00019178,2]
[388688731,1759319439293,-500.0,0.00019178,2]
[388688732,1759319439303,-412.29413606,0.00019178,2]
[388688733,1759319439312,-940.64,0.00019178,2]
[388688734,1759319439322,-500.0,0.00019178,2]
[388688735,1759319439332,-614.7888316,0.00019178,2]
[388688736,1759319439341,-558.21,0.00019178,2]
[388688737,1759319439350,-1829.87,0.00019178,2]
[388688738,1759319439360,-717.66,0.00019178,2]
[388688739,1759319439369,-500.0,0.00019178,2]
[388688740,1759319439379,-500.0,0.00019178,2]
[388688741,1759319439388,-500.0,0.00019178,2]
[388688742,1759319439398,-500.0,0.00019178,2]
[388688743,1759319439407,-403.59061024,0.00019178,2]
[388688744,1759319439417,-480.0,0.00019178,2]
[388688745,1759319439426,-500.0,0.00019178,2]
[388688746,1759319439435,-500.0,0.00019178,2]
[388688747,1759319439444,-500.0,0.00019178,2]
[388688748,1759319439454,-524.33,0.00019178,2]
[388688749,1759319439463,-500.0,0.00019178,2]
[388688750,1759319439472,-500.0,0.00019178,2]
[388688751,1759319439481,-500.0,0.00019178,2]
[388688752,1759319439491,-500.0,0.00019178,2]
[388688753,1759319439502,-690.27,0.00019178,2]
[388688754,1759319439513,-500.0,0.00019178,2]
[388688755,1759319439523,-500.0,0.00019178,2]
[388688756,1759319439533,-500.0,0.00019178,2]
[388688757,1759319439543,-500.0,0.00019178,2]
[388688758,1759319439552,-1576.47,0.00019178,2]
[388688759,1759319439561,-676.86,0.00019178,2]
[388688760,1759319439570,-607.2,0.00019178,2]
[388688761,1759319439579,-786.19,0.00019178,2]
[388688762,1759319439588,-500.0,0.00019178,2]
[388688763,1759319439597,-344.38781744,0.00019178,2]
[388688764,1759319439606,-500.0,0.00019178,2]
[388688765,1759319439615,-500.0,0.00019178,2]
[388688766,1759319439624,-811.11,0.00019178,2]
[388688767,1759319439633,-500.0,0.00019178,2]
[388688768,1759319439642,-500.0,0.00019178,2]
[388688769,1759319439651,-480.0,0.00019178,2]
[388688770,1759319439662,-500.0,0.00019178,2]
[388688771,1759319439670,-1000.0,0.00019178,2]
[388688772,1759319439679,-500.0,0.00019178,2]
[388688773,1759319439688,-500.0,0.00019178,2]
[388688774,1759319439698,-500.0,0.00019178,2]
[388688776,1759319439707,-445.43133117,0.00019178,2]
[388688777,1759319439715,-500.0,0.00019178,2]
[388688778,1759319439724,-500.0,0.00019178,2]
[388688780,1759319439733,-503.2,0.00019178,2]
[388688782,1759319439742,-442.09087653,0.00019178,2]
[388688783,1759319439750,-637.91,0.00019178,2]
[388688785,1759319439760,-449.92179903,0.00019178,2]
[388688787,1759319439769,-589.59,0.00019178,2]
[388688789,1759319439778,-500.0,0.00019178,2]
[388688791,1759319439787,-465.24736511,0.00019178,2]
[388688793,1759319439796,-500.0,0.00019178,2]
[388688795,1759319439806,-500.0,0.00019178,2]
[388688797,1759319439815,-500.0,0.00019178,2]
[388688799,1759319439824,-500.0,0.00019178,2]
[388688801,1759319439833,-500.0,0.00019178,2]
[388688803,1759319439841,-500.0,0.00019178,2]
[388688805,1759319439850,-500.0,0.00019178,2]
[388688806,1759319439860,-500.0,0.00019178,2]
[388688808,1759319439869,-1784.19,0.00019178,2]
[388688810,1759319439878,-500.0,0.00019178,2]
[388688812,1759319439887,-500.0,0.00019178,2]
[388688814,1759319439896,-500.0,0.00019178,2]
[388688816,1759319439906,-500.0,0.00019178,2]
[388688818,1759319439916,-581.14,0.00019178,2]
[388688820,1759319439925,-500.0,0.00019178,2]
[388688822,1759319439934,-500.0,0.00019178,2]
[388688824,1759319439944,-742.04,0.00019178,2]
[388688826,1759319439953,-500.0,0.00019178,2]
[388688828,1759319439963,-500.0,0.00019178,2]
[388688830,1759319439972,-500.0,0.00019178,2]
[388688832,1759319439981,-500.0,0.00019178,2]
[388688834,1759319439990,-500.0,0.00019178,2]
[388688837,1759319440002,-2206.39,0.00019178,2]
[388688839,1759319440011,-500.0,0.00019178,2]
[388688841,1759319440020,-500.0,0.00019178,2]
[388688843,1759319440029,-553.24,0.00019178,2]
[388688845,1759319440038,-537.85,0.00019178,2]
[388688847,1759319440047,-557.54,0.00019178,2]
[388688849,1759319440056,-500.0,0.00019178,2]
[388688851,1759319440065,-510.09,0.00019178,2]
[388688853,1759319440074,-500.0,0.00019178,2]
[388688855,1759319440083,-500.0,0.00019178,2]
[388688857,1759319440092,-584.3,0.00019178,2]
[388688859,1759319440101,-502.54,0.00019178,2]
[388688861,1759319440110,-996.46,0.00019178,2]
[388688863,1759319440124,-2865.45,0.00019178,2]
[388688864,1759319440134,-475.86634205,0.00019178,2]
[388688866,1759319440143,-500.0,0.00019178,2]
[388688868,1759319440152,-500.0,0.00019178,2]
[388688871,1759319440164,-1122.26,0.00019178,2]
[388688872,1759319440174,-500.0,0.00019178,2]
[388688874,1759319440185,-500.0,0.00019178,2]
[388688877,1759319440196,-994.6,0.00019178,2]
[388688879,1759319440206,-500.0,0.00019178,2]
[388688881,1759319440216,-500.0,0.00019178,2]
[388688883,1759319440226,-500.0,0.00019178,2]
[388688885,1759319440236,-6919.81,0.00019178,2]
[388688887,1759319440246,-811.28,0.00019178,2]
[388688889,1759319440257,-500.0,0.00019178,2]
[388688891,1759319440268,-500.0,0.00019178,2]
[388688893,1759319440277,-674.15,0.00019178,2]
[388688895,1759319440287,-500.0,0.00019178,2]
[388688897,1759319440296,-2035.63,0.00019178,2]
[388688899,1759319440305,-651.86,0.00019178,2]
[388688901,1759319440314,-1287.99,0.00019178,2]
[388688903,1759319440324,-500.0,0.00019178,2]
[388688905,1759319440333,-500.0,0.00019178,2]
[388688907,1759319440342,-889.26,0.00019178,2]
[388688909,1759319440351,-847.14,0.00019178,2]
[388688911,1759319440361,-500.0,0.00019178,2]
[388688913,1759319440370,-500.0,0.00019178,2]
[388688915,1759319440379,-500.0,0.00019178,2]
[388688916,1759319440388,-500.0,0.00019178,2]
[388688918,1759319440397,-500.0,0.00019178,2]
[388688920,1759319440406,-500.0,0.00019178,2]
[388688922,1759319440417,-500.0,0.00019178,2]
[388688924,1759319440426,-801.16,0.00019178,2]
[388688926,1759319440435,-1013.37,0.00019178,2]
[388688928,1759319440444,-999.37,0.00019178,2]
[388688930,1759319440453,-653.39,0.00019178,2]
[388688932,1759319440463,-500.0,0.00019178,2]
[388688934,1759319440471,-1412.5,0.00019178,2]
[388688936,1759319440480,-1089.04,0.00019178,2]
[388688938,1759319440489,-1001.7,0.00019178,2]
[388688940,1759319440498,-500.0,0.00019178,2]
[388688942,1759319440507,-1182.6,0.00019178,2]
[388688944,1759319440517,-500.0,0.00019178,2]
[388688946,1759319440526,-500.0,0.00019178,2]
[388688948,1759319440535,-725.3,0.00019178,2]
[388688950,1759319440544,-500.0,0.00019178,2]
[388688952,1759319440553,-500.0,0.00019178,2]
[388688954,1759319440562,-1624.6,0.00019178,2]
[388688956,1759319440571,-1143.11,0.00019178,2]
[388688958,1759319440581,-500.0,0.00019178,2]
[388688960,1759319440590,-500.0,0.00019178,2]
[388688962,1759319440599,-500.0,0.00019178,2]
[388688963,1759319440609,-1089.61,0.00019178,2]
[388688965,1759319440618,-1122.22,0.00019178,2]
[388688967,1759319440626,-500.0,0.00019178,2]
[388688968,1759319440635,-481.47495896,0.00019178,2]
[388688969,1759319440644,-500.0,0.00019178,2]
[388688970,1759319440654,-500.0,0.00019178,2]
[388688972,1759319440664,-2437.64,0.00019178,2]
[388688974,1759319440673,-500.0,0.00019178,2]
[388688976,1759319440682,-1114.11,0.00019178,2]
[388688978,1759319440691,-500.0,0.00019178,2]
[388688980,1759319440700,-1246.21,0.00019178,2]
[388688982,1759319440709,-500.0,0.00019178,2]
[388688984,1759319440718,-1845.38,0.00019178,2]
[388688986,1759319440728,-1237.11,0.00019178,2]
[388688988,1759319440736,-500.0,0.00019178,2]
[388688990,1759319440745,-500.0,0.00019178,2]
[388688992,1759319440754,-500.0,0.00019178,2]
[388688994,1759319440763,-861.51,0.00019178,2]
[388688996,1759319440772,-1214.65,0.00019178,2]
[388688998,1759319440781,-500.0,0.00019178,2]
[388689000,1759319440791,-1069.15,0.00019178,2]
[388689002,1759319440801,-500.0,0.00019178,2]
[388689004,1759319440810,-500.0,0.00019178,2]
[388689006,1759319440819,-638.55291868,0.00019178,2]
[388689007,1759319440828,-500.0,0.00019178,2]
[388689008,1759319440838,-500.0,0.00019178,2]
[388689009,1759319440847,-500.0,0.00019178,2]
[388689010,1759319440856,-500.0,0.00019178,2]
[388689011,1759319440865,-491.82461799,0.00019178,2]
[388689012,1759319440874,-500.0,0.00019178,2]
[388689013,1759319440883,-1375.74,0.00019178,2]
[388689014,1759319440892,-500.0,0.00019178,2]
[388689015,1759319440902,-433.48682062,0.00019178,2]
[388689016,1759319440915,-500.0,0.00019178,2]
[388689017,1759319440924,-500.0,0.00019178,2]
[388689018,1759319440934,-1016.11,0.00019178,2]
[388689019,1759319440943,-549.33,0.00019178,2]
[388689020,1759319440953,-4225.65,0.00019178,2]
[388689021,1759319440963,-500.0,0.00019178,2]
[388689022,1759319440974,-500.0,0.00019178,2]
[388689023,1759319440983,-464.06415673,0.00019178,2]
[388689024,1759319440992,-645.55,0.00019178,2]
[388689025,1759319441003,-500.0,0.00019178,2]
[388689026,1759319441012,-500.0,0.00019178,2]
[388689027,1759319441021,-1157.25,0.00019178,2]
[388689028,1759319441031,-500.0,0.00019178,2]
[388689029,1759319441042,-1445.35,0.00019178,2]
[388689030,1759319441051,-500.0,0.00019178,2]
[388689031,1759319441060,-463.15979497,0.00019178,2]
[388689032,1759319441070,-1243.34,0.00019178,2]
[388689033,1759319441079,-1140.67,0.00019178,2]
[388689034,1759319441089,-500.0,0.00019178,2]
[388689035,1759319441098,-618.08,0.00019178,2]
[388689036,1759319441107,-552.57,0.00019178,2]
[388689037,1759319441121,-466.31661819,0.00019178,2]
[388689038,1759319441130,-500.0,0.00019178,2]
[388689039,1759319441140,-500.0,0.00019178,2]
[388689040,1759319441149,-602.45,0.00019178,2]
[388689041,1759319441158,-1493.85,0.00019178,2]
[388689042,1759319441170,-2787.19,0.00019178,2]
[388689043,1759319441179,-1214.91,0.00019178,2]
[388689044,1759319441188,-500.0,0.00019178,2]
[388689045,1759319441198,-2309.48,0.00019178,2]
[388689046,1759319441209,-500.0,0.00019178,2]
[388689047,1759319441218,-532.4,0.00019178,2]
[388689048,1759319441227,-2089.08,0.00019178,2]
[388689049,1759319441237,-500.0,0.00019178,2]
[388689050,1759319441246,-500.0,0.00019178,2]
[388689051,1759319441257,-463.26986576,0.00019178,2]
[388689052,1759319441266,-1203.3,0.00019178,2]
[388689053,1759319441275,-1331.3,0.00019178,2]
[388689054,1759319441285,-370.57669334,0.00019178,2]
[388689055,1759319441294,-5000.0,0.00019178,2]
[388689056,1759319441304,-500.0,0.00019178,2]
[388689057,1759319441313,-500.0,0.00019452,2]
[388689058,1759319441323,-500.0,0.00019452,2]
[388689059,1759319441336,-500.0,0.00019452,2]
[388689060,1759319441346,-500.0,0.00019452,2]
[388689061,1759319441355,-500.0,0.00019452,2]
[388689062,1759319441365,-1751.0,0.00019452,2]
[388689064,1759319441374,-500.0,0.00019452,2]
[388689066,1759319441383,-716.6,0.00019452,2]
[388689067,1759319441393,-500.0,0.00019452,2]
[388689069,1759319441402,-500.0,0.00019452,2]
[388689071,1759319441414,-500.0,0.00019452,2]
[388689084,1759319441584,-540.05,0.00019452,2]
[388689086,1759319441595,-516.94,0.00019452,2]
[388689088,1759319441605,-500.0,0.00019452,2]
[388689090,1759319441615,-500.0,0.00019452,2]
[388689092,1759319441624,-500.0,0.00019452,2]
[388689094,1759319441634,-637.56,0.00019452,2]
[388689096,1759319441645,-500.0,0.00019452,2]
[388689098,1759319441654,-579.33,0.00019452,2]
[388689100,1759319441664,-630.33,0.00019452,2]
[388689102,1759319441673,-1591.89,0.00019452,2]
[388689104,1759319441682,-531.31,0.00019452,2]
[388689106,1759319441691,-500.0,0.00019452,2]
[388689108,1759319441700,-500.0,0.00019452,2]
[388689110,1759319441709,-628.69,0.00019452,2]
[388689112,1759319441718,-500.0,0.00019452,2]
[388689114,1759319441727,-500.0,0.00019452,2]
[388689116,1759319441736,-541.99,0.00019452,2]
[388689118,1759319441745,-512.1,0.00019452,2]
[388689119,1759319441754,-1403.67,0.00019452,2]
[388689121,1759319441763,-877.93,0.00019452,2]
[388689123,1759319441772,-940.64,0.00019452,2]
[388689125,1759319441782,-558.21,0.00019452,2]
[388689127,1759319441792,-1829.87,0.00019452,2]
[388689129,1759319441802,-717.66,0.00019452,2]
[388689131,1759319441812,-177.10026579,0.00019452,2]
[388689133,1759319441821,-500.0,0.00019452,2]
[388689135,1759319441831,-500.0,0.00019452,2]
[388689137,1759319441840,-500.0,0.00019452,2]
[388689139,1759319441849,-500.0,0.00019452,2]
[388689141,1759319441858,-500.0,0.00019452,2]
[388689143,1759319441868,-524.33,0.00019452,2]
[388689144,1759319441878,-500.0,0.00019452,2]
[388689145,1759319441888,-500.0,0.00019452,2]
[388689146,1759319441898,-690.27,0.00019452,2]
[388689147,1759319441908,-500.0,0.00019452,2]
[388689148,1759319441919,-500.0,0.00019452,2]
[388689149,1759319441928,-1576.47,0.00019452,2]
[388689150,1759319441938,-676.86,0.00019452,2]
[388689152,1759319441947,-607.2,0.00019452,2]
[388689153,1759319441956,-786.19,0.00019452,2]
[388689156,1759319441965,-500.0,0.00019452,2]
[388689158,1759319441975,-500.0,0.00019452,2]
[388689160,1759319441984,-500.0,0.00019452,2]
[388689162,1759319441993,-811.11,0.00019452,2]
[388689164,1759319442002,-500.0,0.00019452,2]
[388689166,1759319442011,-500.0,0.00019452,2]
[388689168,1759319442020,-473.33838339,0.00019452,2]
[388689170,1759319442029,-637.91,0.00019452,2]
[388689172,1759319442039,-589.59,0.00019452,2]
[388689174,1759319442048,-500.0,0.00019452,2]
[388689176,1759319442057,-500.0,0.00019452,2]
[388689178,1759319442067,-500.0,0.00019452,2]
[388689180,1759319442077,-500.0,0.00019452,2]
[388689182,1759319442086,-253.23238886,0.00019452,2]
[388689184,1759319442095,-500.0,0.00019452,2]
[388689186,1759319442105,-500.0,0.00019452,2]
[388689188,1759319442116,-500.0,0.00019452,2]
[388689190,1759319442126,-500.0,0.00019452,2]
[388689192,1759319442137,-1784.19,0.00019452,2]
[388689194,1759319442146,-500.0,0.00019452,2]
[388689196,1759319442156,-500.0,0.00019452,2]
[388689198,1759319442167,-581.14,0.00019452,2]
[388689200,1759319442177,-500.0,0.00019452,2]
[388689202,1759319442187,-500.0,0.00019452,2]
[388689203,1759319442197,-742.04,0.00019452,2]
[388689205,1759319442208,-500.0,0.00019452,2]
[388689207,1759319442217,-500.0,0.00019452,2]
[388689209,1759319442225,-500.0,0.00019452,2]
[388689211,1759319442235,-2206.39,0.00019452,2]
[388689213,1759319442244,-500.0,0.00019452,2]
[388689215,1759319442255,-500.0,0.00019452,2]